Cogmind - Beta 15 @@@ ROGUE MODE // 2025.06.06 @ 17:56:54 Player: irisidem Result: Destroyed by D-53 Grenadier with Mini Grenade Launcher Performance ------------- Evolutions (0) 0 Regions Visited (2) 400 Robots Destroyed (15) 75 Value Destroyed (237) 237 Prototype IDs (0) 0 Alien Tech Used (0) 0 Bonus (0) 0 TOTAL SCORE: 712 Bonus ------- None Cogmind --------- Core Integrity 0/250 Matter 277/300 Energy 100/100 System Corruption 3% Temperature Cool (33) Movement Core (100) Ox1 Location -10/Mines Parts ------- > --- POWER (1) -------- (None) > --- PROPULSION (2) --- (None) > --- UTILITY (2) ------ Small Storage Unit Signal Interpreter > --- WEAPON (2) ------- (None) > --- INVENTORY (8) ---- Ion Engine Ion Engine Heat Sink Seismic Detector EM Pulse Gun EM Pulse Gun Grenade Launcher Peak State ------------ > --- POWER ------------ Ion Engine > --- PROPULSION ------- Aluminum Leg Aluminum Leg > --- UTILITY ---------- Small Storage Unit Signal Interpreter > --- WEAPON ----------- Particle Gun Rocket Launcher > --- INVENTORY -------- Ion Engine Ion Engine Aluminum Leg Heat Sink Seismic Detector EM Pulse Gun EM Pulse Gun Grenade Launcher [Rating: 9] Favorites ----------- Power Light Ion Engine Engine Light Ion Engine Propulsion Aluminum Leg Leg Aluminum Leg Utility Small Storage Unit Storage Small Storage Unit Processor Signal Interpreter Weapon EM Pulse Gun Energy Gun EM Pulse Gun Launcher Grenade Launcher Build | -11 -10 -10 ------- Run | Yrd Mat Min Slots Evolved . | . . . Power . | . . . Propulsion . | . . . Utility . | . . . Weapon . | . . . Parts Attached 15 | 6 7 2 Power 2 | 1 1 . Engine 2 | 1 1 . Core . | . . . Reactor . | . . . Propulsion 4 | 2 1 1 Treads . | . . . Leg 4 | 2 1 1 Wheel . | . . . Hover . | . . . Flight . | . . . Utility 2 | 1 1 . Device . | . . . Storage 1 | 1 . . Processor 1 | . 1 . Hackware . | . . . Protection . | . . . Artifact . | . . . Weapon 7 | 2 4 1 Energy Gun 5 | 2 3 . Energy Cannon . | . . . Ballistic Gun . | . . . Ballistic Cannon . | . . . Launcher 2 | . 1 1 Special Weapon . | . . . Impact Weapon . | . . . Slashing Weapon . | . . . Piercing Weapon . | . . . Special Melee Weapon . | . . . Unidentified Prototypes . | . . . Parts Lost 8 | . 2 6 Power 1 | . . 1 Propulsion 3 | . . 3 Utility . | . . . Weapon 4 | . 2 2 Highest Loss Streak 6 | . 2 6 To Critical Strikes . | . . . Average Backups 5 | 1 5 7 Power 1 | . 1 2 Propulsion . | . . . Utility 1 | . 1 2 Weapon 1 | . 1 3 Tool/Special . | . . . Unused Backups 10 | . 5 5 Power 3 | . 1 2 Propulsion . | . . . Utility 4 | . 3 1 Weapon 2 | . . 2 Tool/Special 1 | . 1 . Average Slot Usage (%) 96 | . 96 92 Engine 13 | . 14 12 Leg 27 | . 28 23 Storage 14 | . 14 14 Processor 12 | . 12 14 Energy Gun 19 | . 20 12 Launcher 7 | . 6 14 Peak Build Rating 9 | 6 8 9 Average Rating 6 | 4 6 8 On Entrance 4 | . 6 8 Naked Turns . | . . . Heaviest Build 17 | 11 16 17 Greatest Support 20 | 20 20 20 Greatest Overweight (x) 1 | . 1 1 Average Overweight (x) . | . . . Largest Inventory Capacity 8 | 8 8 8 Average Capacity 7 | 7 8 8 Most Carried 8 | 5 8 8 Average Carried 5 | 1 5 7 Final Capacity 8 | 8 8 8 Final Carried 8 | 2 8 7 Class Distribution -------------------- 100% | Mutant Dominant Class ---------------- Mutant | -10/Materials Mutant | -10/Mines Resources | -11 -10 -10 ----------- Run | Yrd Mat Min Matter Collected 498 | 258 161 79 Remotely . | . . . Salvage Created 310 | . 310 . Parts 31 | . 31 . Haulers Intercepted 1 | . 1 . Recyclers Shooed . | . . . Parts Field Recycled . | . . . Retrieved Matter . | . . . Parts Self-Destructed . | . . . Prevented . | . . . Kills | -11 -10 -10 ------- Run | Yrd Mat Min Combat Hostiles Destroyed 10 | . 10 . Guns 4 | . 4 . AOE 6 | . 6 . Classes Destroyed 5 | . 5 . Worker 1 | . 1 . Builder 3 | . 3 . Hauler 1 | . 1 . Swarmer 6 | . 6 . Grunt 4 | . 4 . Best Kill Streak 7 | . 7 . Combat Bots Only 4 | . 4 . Max Kills in Single Turn 4 | . 4 . Gunslinging . | . . . Exploded 2 | . 2 . Melee . | . . . Uniques/NPCs Destroyed . | . . . Combat | -11 -10 -10 -------- Run | Yrd Mat Min Hostile Shots Fired 62 | . 48 14 Missed 14 | . 14 . Hits 48 | . 34 14 Projectile 48 | . 34 14 AOE 14 | . . 14 Damage Taken 921 | . 416 505 Core 257 | . 94 163 Absorbed by Shields . | . . . Core Remaining (%) 100 | 100 . . Volleys Fired 51 | . 48 3 Largest 2 | . 2 2 Hottest 98 | . 80 98 Shots Fired 72 | . 67 5 Gun 56 | . 54 2 Cannon . | . . . Launcher 16 | . 13 3 Special . | . . . Kinetic . | . . . Thermal 20 | . 18 2 Explosive 16 | . 13 3 Electromagnetic 36 | . 36 . Robot Hit Streak 7 | . 7 3 Robot Miss Streak 6 | . 6 2 Penetration Max . | . . . Secondary Targets . | . . . Shots Hit Robots 28 | . 25 3 Core Hits 27 | . 22 5 Critical Kills . | . . . Critical Parts Destroyed . | . . . Critical Strikes 3 | . 2 1 Burn 1 | . . 1 Corrupt 2 | . 2 . Melee Attacks . | . . . Impact . | . . . Slashing . | . . . Piercing . | . . . Sneak Attacks . | . . . Combat Hostiles . | . . . Follow-up Attacks . | . . . Damage Inflicted 988 | . 815 173 Guns 321 | . 304 17 Cannons . | . . . Explosions 658 | . 502 156 Melee . | . . . Ramming 9 | . 9 . Kinetic . | . . . Thermal 146 | . 129 17 Explosive 658 | . 502 156 Electromagnetic 175 | . 175 . Impact . | . . . Slashing . | . . . Piercing . | . . . Highest Corruption 3 | . 3 3 Average Corruption 2 | . 2 3 Corruption Purged . | . . . Corruption Blocked . | . . . Effects 14 | . 13 1 Message Errors 3 | . 2 1 Matter Fused 4 | . 4 . Heat Flow Errors 1 | . 1 . Energy Discharges 3 | . 3 . Data Loss (minor) 2 | . 2 . Alerts 1 | . 1 . Overload Shots . | . . . Overflow Damage 24 | . 16 8 Projectiles . | . . . Explosions 24 | . 16 8 Melee . | . . . Knockbacks . | . . . Impact . | . . . Kinetic . | . . . Secondary . | . . . Self-Inflicted Damage 38 | . 38 . Shots 2 | . 2 . Rammed . | . . . Targets Rammed 2 | . 2 . Kicked 2 | . 2 . Crushed . | . . . Highest Temperature 246 | . 246 42 Average Temperature 68 | . 70 25 Received Heat Transfer 162 | . 162 . Siege Activations . | . . . Martial Activations . | . . . Shielding Activations . | . . . Robots Disrupted . | . . . Combat Hostiles . | . . . Robots Corrupted . | . . . Combat Hostiles . | . . . Parts Fried . | . . . Impact Corruptions . | . . . Robots Melted . | . . . Combat Hostiles . | . . . Parts Melted . | . . . Heat Transferred 411 | . 300 111 Parts Sabotaged . | . . . Parts Stolen . | . . . Parts Stripped . | . . . Power Chain Reactions . | . . . Alert | -11 -10 -10 ------- Run | Yrd Mat Min Maximum Alert Level . | . . . Low Security (%) 100 | 100 100 100 Level 1 . | . . . Level 2 . | . . . Level 3 . | . . . Level 4 . | . . . Level 5 . | . . . High Security . | . . . Max Security . | . . . Peak Influence 172 | . 172 25 Initial 25 | . . 25 Average 72 | . 84 11 Influence Increases 408 | . 399 9 Destroy 0b10 Robot/C 200 | . 200 . Destroy 0b10 Robot/NC 25 | . 25 . Destroy Leader 42 | . 42 . Successful Hack 13 | . 13 . Disable Machine 15 | . 15 . Destroy Structure 83 | . 74 9 Lose Combat Pursuer 30 | . 30 . Influence Decreases 408 | . 332 76 Entered New Map 42 | . . 42 Time Decay 346 | . 312 34 Lost Part 20 | . 20 . Squads Dispatched 1 | . 1 . Investigation . | . . . Extermination . | . . . Reinforcement 1 | . 1 . Assault . | . . . Garrison . | . . . Intercept . | . . . Searches Triggered . | . . . Construction Impeded . | . . . Haulers Reinforced . | . . . Active Scanning Responses . | . . . Cargo Convoy Interrupts . | . . . Stealth | -11 -10 -10 --------- Run | Yrd Mat Min Distress Signals 1 | . 1 . Communications Jammed . | . . . Distress Signals . | . . . Times Spotted 19 | . 17 2 Peak Tracking Total 5 | . 5 2 Tactical Retreats 2 | . 2 . Traps | -11 -10 -10 ------- Run | Yrd Mat Min Traps Triggered 3 | . 3 . Indirectly . | . . . Trap Hack Attempts . | . . . Triggered . | . . . Disarmed . | . . . Reprogrammed . | . . . Reused . | . . . Traps Extracted . | . . . Installed . | . . . Triggered . | . . . Machines | -11 -10 -10 ---------- Run | Yrd Mat Min Machines Disabled 2 | . 2 . Max in Single Turn 1 | . 1 . Machines Repaired . | . . . Machines Dismantled . | . . . Machines Sabotaged . | . . . Overloaded Fab Kills . | . . . Hacking | -11 -10 -10 --------- Run | Yrd Mat Min Machines Accessed 4 | . 4 . Terminals 3 | . 3 . Fabricators . | . . . Repair Stations . | . . . Recycling Units 1 | . 1 . Scanalyzers . | . . . Garrison Access . | . . . Total Hacks 12 | . 12 . Successful 6 | . 6 . Failed 6 | . 6 . Catastrophic 1 | . 1 . Database Lockouts . | . . . Manual . | . . . Terminals 10 | . 10 . Fabricators . | . . . Repair Stations . | . . . Recycling Units 2 | . 2 . Scanalyzers . | . . . Garrison Access . | . . . Terminal Hacks 5 | . 5 . Robot Analysis 1 | . 1 . Emergency Access Points 1 | . 1 . Alert Level 1 | . 1 . Registered Prototypes 1 | . 1 . Zone Layout 1 | . 1 . Fabricator Hacks . | . . . Repair Station Hacks . | . . . Recycling Unit Hacks 1 | . 1 . Report Inventory 1 | . 1 . Scanalyzer . | . . . Garrison Access Hacks . | . . . Unauthorized Hacks . | . . . Terminals . | . . . Fabricators . | . . . Repair Stations . | . . . Recycling Units . | . . . Scanalyzers . | . . . Garrison Access . | . . . Data Cores Recovered . | . . . Used . | . . . Hacking Detections 3 | . 3 . Full Trace Events . | . . . Feedback Events . | . . . Feedback Blocked . | . . . Robot Schematics Acquired . | . . . Robots Built . | . . . Authchips . | . . . Time . | . . . Total Robot Build Rating . | . . . Part Schematics Acquired . | . . . Parts Built . | . . . Authchips . | . . . Time . | . . . Total Part Build Rating . | . . . Parts Repaired . | . . . Time . | . . . Parts Recycled . | . . . Recycled Matter . | . . . Retrieved Matter . | . . . Retrieved Components . | . . . Parts Scanalyzed . | . . . Part Schematics Acquired . | . . . Parts Damaged . | . . . Bothacking | -11 -10 -10 ------------ Run | Yrd Mat Min Used RIF Installer . | . . . Robots Hacked . | . . . Non-combat . | . . . Combat . | . . . Robot Hacks Applied . | . . . Relay Couplers Released . | . . . Fabnet Peak Effective % . | . . . Robots Rewired . | . . . Allies Hacked . | . . . Hacks Repelled . | . . . Allies | -11 -10 -10 -------- Run | Yrd Mat Min Total Allies . | . . . Largest Group . | . . . Highest-Rated Group . | . . . Highest-Rated Ally . | . . . Total Orders . | . . . Ally Attacks . | . . . Total Damage . | . . . Kills . | . . . Allies Corrupted . | . . . Allies Melted . | . . . Intel | -11 -10 -10 ------- Run | Yrd Mat Min Active Infowar (turns) . | . . . Robot Analysis Total 1 | . 1 . Derelict Logs Recovered 1 | . . 1 Drone Launches . | . . . Drone Recoveries . | . . . Exploration | -11 -10 -10 ------------- Run | Yrd Mat Min Turns Passed 919 | 59 778 82 Spaces Moved 613 | 46 510 57 Core 13 | 13 . . Treads . | . . . Legs 600 | 33 510 57 Wheels . | . . . Hover . | . . . Flight . | . . . Fastest Speed 50 | 50 120 120 Average Speed 118 | 100 120 122 Slowest Speed 190 | 120 190 190 Overloaded Moves . | . . . Propulsion Burnouts . | . . . Robots Hopped . | . . . Potential Cave-ins . | . . . Cave-ins Triggered . | . . . Exploration Rate (%) 29 | 3 62 22 Regions Visited 2 Branch Regions 1 Pre-discovered Areas . | . . . Known Exits Taken 1 | . 1 . Unknown Exits Taken 1 | 1 . . Scrap Searched . | . . . Spaces Dug 17 | . 17 . Terrain Destroyed 81 | . 72 9 Melee . | . . . Projectile . | . . . AOE 81 | . 72 9 Terrain Rammed . | . . . Walls Destroyed . | . . . Machines Disabled . | . . . Actions | -11 -10 -10 --------- Run | Yrd Mat Min Total 733 | 59 609 65 Wait 14 | . 14 . Move 611 | 45 509 57 Hop . | . . . Pick Up 28 | 8 19 1 Fast Attach . | . . . Attach 12 | 6 5 1 Detach . | . . . Swap 5 | . 4 1 Drop 9 | . 8 1 Fire 51 | . 48 3 Melee . | . . . Ram . | . . . Kick 2 | . 2 . Crush . | . . . Escape Stasis . | . . . Rewire 1 | . . 1 Trap . | . . . Miscellaneous . | . . . Route ------- -11/Scrapyard -10/Materials (discovered 3 exits: *Mat x2 / *Min) -10/Mines History --------- Turn | Location | Event 3 | -11/Scrapyard | Discovered new exit (range 15) 60 | -11/Scrapyard | Entered Materials 161 | -10/Materials | Discovered new exit (range 14) 206 | -10/Materials | Identified exit to Materials 313 | -10/Materials | Build established: Mutant 426 | -10/Materials | Discovered new exit (range 15) 445 | -10/Materials | Identified exit to Mines 764 | -10/Materials | Discovered exit to Materials (range 12) 838 | -10/Materials | Entered Mines 881 | -10/Mines | Received a Rocket Launcher from a helpful Derelict 888 | -10/Mines | Assembled infested the area 904 | -10/Mines | Learned Materials terminal intel 914 | -10/Mines | Core integrity fell below 50% 917 | -10/Mines | Core integrity fell below 20% 920 | -10/Mines | Destroyed by D-53 Grenadier with Mini Grenade Launcher Last Messages --------------- Dropped Sml. Laser. Acquired Rocket Launcher. ALERT: Infestation in the mines, dispatching Demolisher response squad. P3TJOZE1ZS1UHN#TXA1YLNRRW8RAU>,<5S T-07 Excavator is excavating. Acquired derelict log, extracted data. Data stored: Materials terminal intel. T-07 Excavator is excavating. C-30 ARC bursts open, deploying its payload. D-53 Grenadier unfolds itself. Aluminum Leg destroyed. R-06 Scavenger destroyed. Ion Engine destroyed. Aluminum Leg destroyed. The unstable cave ceiling collapses. D-53 Grenadier suffers critical hit (Burn). Destroyed Wheel. Aluminum Leg destroyed. Particle Gun destroyed. Rocket Launcher destroyed. Map ----- +----------------------------------------------------+ | ??????????????????????????????????????????? | | ??????????????????????????????????????????? | | ??????????????????????????????????????????? | | ??????????????????????????????????????????? | | ??????????????????????????????????????????? | | ??????????????????????????????????????????? | | ??????????????????????????????????????????? | | ?????????????????????????????????????????## | | ????????????????????????????????????????## | | ????????????????? ????????????????????## | | ???????????????? ??????????????????# | | ???????????????? ??????????????????# | | ???????????????? ?????????????????## | | ???????????#???? ????????????????## | | ???????????# ??? #????????????????# # | | ??????????## ???# u#???????????????## ### | | ?????????## #### #???????????????# ##?? | | ?????????# #???????????????# #??? | | ?????????# % t #??????????????## ##?? | | ??????????# d ??####??????#### #?? | | ?????????## d #### ##????## #?? | | ????????## # #???## [ ##?? | | ???????## ##?## ##??? | | ???????# ### ## ##???? | | ???????# ######????? | | ???????????# @ #?????????? | | ???????????## ##?????????? | | ????????????# ##??????????? | | ????????????## # ####???????????? | | ?????????????## ### ##??????????????? | | ??????????????########?## #???????????????? | | ????????????????????????# #???????????????? | | ????????????????????????# ???????????????? | | ????????????????????????####??????????????? | | ??????????????????????????????????????????? | | ??????????????????????????????????????????? | | ??????????????????????????????????????????? | | ??????????????????????????????????????????? | | ??????????????????????????????????????????? | | ??????????????????????????????????????????? | | ??????????????????????????????????????????? | | ??????????????????????????????????????????? | | ??????????????????????????????????????????? | | ??????????????????????????????????????????? | | ??????????????????????????????????????????? | | ??????????????????????????????????????????? | | ??????????????????????????????????????????? | | ??????????????????????????????????????????? | | ??????????????????????????????????????????? | | ??????????????????????????????????????????? | +----------------------------------------------------+ Best States ------------- Heat Dissipation 25 Energy Generation 10 Energy Capacity 250 Matter Stores 300 Matter Capacity 300 Sight Range 16 Terrain Scan Density 10 Evasion (%) 55 Item Schematics ----------------- None Robot Schematics ------------------ None Fabricated ------------ Nothing Repaired ---------- Nothing Alien Tech Used ----------------- None Achievements -------------- None Challenges ------------ None Game ------ Seed LauncherTerrainShockpuncher Manual? 0 Play Time 00:12:19 Cumulative 22.8 hours Start 2025.06.06 @ 17:40:31 End 2025.06.06 @ 17:56:54 Sessions 1 Manual Loads 0 Difficulty Rogue Special Mode None Game No. 58 Rogue 49 Adventurer 9 Explorer 0 Win Type - Total 0 Types 0/0/0/0/0/0/0/0/0/0 Lore% 12 Gallery% 28 Achievement% 27 Wizard Run 0 Options --------- Layout 0 ASCII 0 Keyboard 0 Movement Mouse Keybinds 0 Fullscreen 1 Font 18/SmallcapsGlow Map View 76x50 Zoom Use 0% Tactical HUD 0 Map Filters NONE Filters NONE Steam 1 RUN: d1a39b9d-e2ad-4703-ae20-ef027549d9b7